[Event "Early-Titled-Tuesday-Blitz-October-03-2023"]
[Site "Chess.com"]
[Date "2023.10.03"]
[Round "4"]
[White "WindWhistler11"]
[Black "LubovMarkelova"]
[Result "1-0"]
[WhiteElo "2465"]
[BlackElo "2226"]
[TimeControl "180+1"]
[EndTime "8:39:25 PDT"]
[Termination "WindWhistler11 won by resignation"]

1. Nf3 {[%clk 0:03:00.9]} 1... d5 {[%clk 0:02:59.8]} 2. g3 {[%clk 0:02:58.7]}
2... Nf6 {[%clk 0:02:59.5]} 3. d3 {[%clk 0:02:59.6]} 3... c6 {[%clk 0:03:00]} 4.
Nbd2 {[%clk 0:03:00.2]} 4... Bf5 {[%clk 0:02:59.9]} 5. Bg2 {[%clk 0:03:00.5]}
5... h6 {[%clk 0:03:00.2]} 6. O-O {[%clk 0:02:44.9]} 6... e6 {[%clk 0:03:00.6]}
7. b3 {[%clk 0:02:45.6]} 7... Be7 {[%clk 0:02:59.6]} 8. c4 {[%clk 0:02:46.3]}
8... O-O {[%clk 0:02:59.4]} 9. Bb2 {[%clk 0:02:46.8]} 9... Nbd7 {[%clk
0:02:59.3]} 10. Qc2 {[%clk 0:02:47.2]} 10... a5 {[%clk 0:02:59.2]} 11. a3 {[%clk
0:02:46.8]} 11... Bh7 {[%clk 0:02:57.7]} 12. Rfe1 {[%clk 0:02:46.4]} 12... Qb6
{[%clk 0:02:56.9]} 13. Bc3 {[%clk 0:02:45.5]} 13... Rfd8 {[%clk 0:02:55]} 14.
Qb2 {[%clk 0:02:36]} 14... dxc4 {[%clk 0:02:42.3]} 15. Nxc4 {[%clk 0:02:35]}
15... Qc7 {[%clk 0:02:30.9]} 16. b4 {[%clk 0:02:25.7]} 16... axb4 {[%clk
0:02:29.6]} 17. axb4 {[%clk 0:02:25.4]} 17... Bf8 {[%clk 0:02:26.2]} 18. e4
{[%clk 0:02:21.8]} 18... Nb6 {[%clk 0:01:52.2]} 19. Nxb6 {[%clk 0:01:39.3]}
19... Qxb6 {[%clk 0:01:45.3]} 20. Rxa8 {[%clk 0:01:39]} 20... Rxa8 {[%clk
0:01:45.1]} 21. Bxf6 {[%clk 0:01:39.3]} 21... gxf6 {[%clk 0:01:45.3]} 22. Qxf6
{[%clk 0:01:36.5]} 22... Bg7 {[%clk 0:01:39.8]} 23. Qe7 {[%clk 0:01:28.4]} 23...
Bf8 {[%clk 0:01:33.6]} 24. Qf6 {[%clk 0:01:23.3]} 24... Bg7 {[%clk 0:01:33.5]}
25. Qe7 {[%clk 0:01:20.5]} 25... Bf8 {[%clk 0:01:33.5]} 26. Qh4 {[%clk
0:01:21.3]} 26... Ra2 {[%clk 0:01:26.1]} 27. Rf1 {[%clk 0:01:14.8]} 27... Qxb4
{[%clk 0:01:24.9]} 28. Ne5 {[%clk 0:01:13.3]} 28... Qe7 {[%clk 0:01:20.4]} 29.
Qf4 {[%clk 0:01:10.9]} 29... Bg7 {[%clk 0:01:11.6]} 30. Ng4 {[%clk 0:01:09.8]}
30... Qg5 {[%clk 0:01:00.5]} 31. Qb8+ {[%clk 0:01:09.4]} 31... Bf8 {[%clk
0:01:00.3]} 32. Bf3 {[%clk 0:01:02]} 32... b5 {[%clk 0:00:49.9]} 33. h4 {[%clk
0:01:01.8]} 33... Qg6 {[%clk 0:00:33.8]} 34. Ne5 {[%clk 0:00:53.7]} 34... Qf6
{[%clk 0:00:33.7]} 35. Bh5 {[%clk 0:00:53.6]} 35... Bg6 {[%clk 0:00:20.8]} 36.
Ng4 {[%clk 0:00:40.7]} 36... Qg7 {[%clk 0:00:17.5]} 37. e5 {[%clk 0:00:34.5]}
37... Bxh5 {[%clk 0:00:16]} 38. Nf6+ {[%clk 0:00:35.2]} 38... Kh8 {[%clk
0:00:16.4]} 39. Nxh5 {[%clk 0:00:35.3]} 39... Qg6 {[%clk 0:00:15.6]} 40. Qxf8+
{[%clk 0:00:34.5]} 40... Kh7 {[%clk 0:00:15.6]} 41. Nf6+ {[%clk 0:00:35.1]} 1-0

[Event "Early-Titled-Tuesday-Blitz-October-03-2023"]
[Site "Chess.com"]
[Date "2023.10.03"]
[Round "4"]
[White "SanchezKelvin"]
[Black "Quattroporte300"]
[Result "1-0"]
[WhiteElo "2614"]
[BlackElo "2384"]
[TimeControl "180+1"]
[EndTime "8:39:29 PDT"]
[Termination "SanchezKelvin won on time"]

1. e4 {[%clk 0:02:20.1]} 1... c5 {[%clk 0:02:58.7]} 2. Nf3 {[%clk 0:02:15.1]}
2... d6 {[%clk 0:02:57.2]} 3. d4 {[%clk 0:01:53.7]} 3... cxd4 {[%clk 0:02:58.1]}
4. Nxd4 {[%clk 0:01:30.5]} 4... Nf6 {[%clk 0:02:57.4]} 5. Nc3 {[%clk 0:01:30.5]}
5... a6 {[%clk 0:02:55.3]} 6. Bg5 {[%clk 0:01:30.2]} 6... Nbd7 {[%clk 0:02:55]}
7. f4 {[%clk 0:01:30.2]} 7... h6 {[%clk 0:02:54.5]} 8. Bxf6 {[%clk 0:01:29.4]}
8... Nxf6 {[%clk 0:02:54.3]} 9. Qf3 {[%clk 0:01:28.6]} 9... e6 {[%clk
0:02:52.3]} 10. O-O-O {[%clk 0:01:28.1]} 10... Qc7 {[%clk 0:02:48.1]} 11. g4
{[%clk 0:01:24.2]} 11... e5 {[%clk 0:02:15.1]} 12. Nf5 {[%clk 0:01:15.5]} 12...
Bxf5 {[%clk 0:02:14.3]} 13. gxf5 {[%clk 0:01:15.4]} 13... O-O-O {[%clk
0:02:10.8]} 14. Bd3 {[%clk 0:00:53.7]} 14... Be7 {[%clk 0:02:05.4]} 15. Rhg1
{[%clk 0:00:52.5]} 15... Rhg8 {[%clk 0:01:52.4]} 16. Kb1 {[%clk 0:00:48.5]}
16... b5 {[%clk 0:01:48.7]} 17. Be2 {[%clk 0:00:44.5]} 17... Kb7 {[%clk
0:01:47.5]} 18. Rd3 {[%clk 0:00:35.6]} 18... Qc6 {[%clk 0:01:32.9]} 19. Rgd1
{[%clk 0:00:24.2]} 19... b4 {[%clk 0:01:28.1]} 20. Nd5 {[%clk 0:00:21]} 20...
Nxd5 {[%clk 0:01:28.2]} 21. Rxd5 {[%clk 0:00:21.3]} 21... exf4 {[%clk
0:01:18.4]} 22. R5d4 {[%clk 0:00:19.6]} 22... a5 {[%clk 0:01:12.2]} 23. Bc4
{[%clk 0:00:19.6]} 23... Ka7 {[%clk 0:00:49.2]} 24. Bd5 {[%clk 0:00:19.5]} 24...
Qc5 {[%clk 0:00:42.5]} 25. Qxf4 {[%clk 0:00:19.4]} 25... Bf6 {[%clk 0:00:42.4]}
26. Rc4 {[%clk 0:00:19.5]} 26... Qb6 {[%clk 0:00:22.8]} 27. Rc6 {[%clk
0:00:18.4]} 27... Be5 {[%clk 0:00:14.5]} 28. Qd2 {[%clk 0:00:18]} 28... Qb5
{[%clk 0:00:10.8]} 29. Qe3+ {[%clk 0:00:17.8]} 29... Kb8 {[%clk 0:00:08]} 30.
Rb6+ {[%clk 0:00:17.7]} 1-0

[Event "Early-Titled-Tuesday-Blitz-October-03-2023"]
[Site "Chess.com"]
[Date "2023.10.03"]
[Round "4"]
[White "Korchmar_Vasiliy"]
[Black "Rosh1610"]
[Result "1-0"]
[WhiteElo "2679"]
[BlackElo "2457"]
[TimeControl "180+1"]
[EndTime "8:39:30 PDT"]
[Termination "Korchmar_Vasiliy won by checkmate"]

1. e4 {[%clk 0:03:00.9]} 1... c5 {[%clk 0:02:59]} 2. d4 {[%clk 0:03:00.7]} 2...
cxd4 {[%clk 0:02:58.9]} 3. Qxd4 {[%clk 0:03:01.6]} 3... Nc6 {[%clk 0:02:57.8]}
4. Qd3 {[%clk 0:03:02.1]} 4... Nf6 {[%clk 0:02:57.4]} 5. Nc3 {[%clk 0:03:02.1]}
5... g6 {[%clk 0:02:57.1]} 6. Nf3 {[%clk 0:03:01.8]} 6... Bg7 {[%clk 0:02:57.7]}
7. Be2 {[%clk 0:03:01.8]} 7... d6 {[%clk 0:02:58.1]} 8. O-O {[%clk 0:03:02.1]}
8... O-O {[%clk 0:02:58.8]} 9. Nd5 {[%clk 0:03:02.4]} 9... Be6 {[%clk
0:02:54.5]} 10. c3 {[%clk 0:03:01.1]} 10... Rc8 {[%clk 0:02:54.2]} 11. Rd1
{[%clk 0:02:56.2]} 11... Nd7 {[%clk 0:02:53.6]} 12. Bg5 {[%clk 0:02:54]} 12...
Nc5 {[%clk 0:02:48.1]} 13. Qe3 {[%clk 0:02:52]} 13... Re8 {[%clk 0:02:43.3]} 14.
h3 {[%clk 0:02:36.2]} 14... Na4 {[%clk 0:02:26.3]} 15. Rd2 {[%clk 0:02:31.3]}
15... Nb6 {[%clk 0:02:26]} 16. Rad1 {[%clk 0:02:27.4]} 16... Bxd5 {[%clk
0:02:23.9]} 17. exd5 {[%clk 0:02:26.2]} 17... Na5 {[%clk 0:02:17.7]} 18. Rd4
{[%clk 0:02:04.4]} 18... Nbc4 {[%clk 0:02:12.8]} 19. Qc1 {[%clk 0:01:55.5]}
19... Bxd4 {[%clk 0:02:10]} 20. Rxd4 {[%clk 0:01:56.4]} 20... Ne5 {[%clk
0:01:56.1]} 21. b3 {[%clk 0:01:09.7]} 21... Qb6 {[%clk 0:01:47.8]} 22. Rh4
{[%clk 0:01:05.9]} 22... f5 {[%clk 0:01:04.2]} 23. Be3 {[%clk 0:01:01.8]} 23...
Nxf3+ {[%clk 0:01:01.3]} 24. Bxf3 {[%clk 0:01:01.3]} 24... Qc7 {[%clk
0:01:00.6]} 25. Bd4 {[%clk 0:01:00.5]} 25... Rf8 {[%clk 0:00:51.2]} 26. Qh6
{[%clk 0:00:48]} 26... Rf7 {[%clk 0:00:51.1]} 27. Qxg6+ {[%clk 0:00:48.3]} 27...
Kf8 {[%clk 0:00:49.9]} 28. Rxh7 {[%clk 0:00:20.1]} 28... Rxh7 {[%clk 0:00:45.7]}
29. Qxh7 {[%clk 0:00:20.1]} 29... Ke8 {[%clk 0:00:40.4]} 30. Bh5+ {[%clk
0:00:15]} 30... Kd8 {[%clk 0:00:36.3]} 31. Bg6 {[%clk 0:00:07.1]} 31... e5
{[%clk 0:00:22.3]} 32. Qg8+ {[%clk 0:00:07]} 32... Ke7 {[%clk 0:00:22.3]} 33.
Qf7+ {[%clk 0:00:05.8]} 33... Kd8 {[%clk 0:00:21.6]} 34. Qf8+ {[%clk 0:00:06.2]}
34... Kd7 {[%clk 0:00:21.5]} 35. Bxf5# {[%clk 0:00:06.9]} 1-0

[Event "Early-Titled-Tuesday-Blitz-October-03-2023"]
[Site "Chess.com"]
[Date "2023.10.03"]
[Round "4"]
[White "MathiasWomacka"]
[Black "Mops_2004"]
[Result "0-1"]
[WhiteElo "2572"]
[BlackElo "2801"]
[TimeControl "180+1"]
[EndTime "8:39:41 PDT"]
[Termination "Mops_2004 won on time"]

1. e4 {[%clk 0:03:00.9]} 1... g6 {[%clk 0:03:00.2]} 2. d4 {[%clk 0:03:00.1]}
2... Bg7 {[%clk 0:03:00.8]} 3. Nc3 {[%clk 0:03:00.1]} 3... d6 {[%clk 0:03:01.5]}
4. f4 {[%clk 0:03:00.3]} 4... Nf6 {[%clk 0:03:01.1]} 5. Nf3 {[%clk 0:03:00.7]}
5... c5 {[%clk 0:03:01.6]} 6. Bb5+ {[%clk 0:02:55.3]} 6... Bd7 {[%clk
0:03:01.3]} 7. e5 {[%clk 0:02:53.4]} 7... Ng4 {[%clk 0:03:01.1]} 8. Bxd7+ {[%clk
0:02:53.3]} 8... Qxd7 {[%clk 0:03:00.2]} 9. d5 {[%clk 0:02:52.2]} 9... dxe5
{[%clk 0:03:00.2]} 10. h3 {[%clk 0:02:51.3]} 10... e4 {[%clk 0:03:00.6]} 11.
hxg4 {[%clk 0:02:51.6]} 11... exf3 {[%clk 0:03:00.7]} 12. Qxf3 {[%clk
0:02:52.2]} 12... Na6 {[%clk 0:03:01.2]} 13. Bd2 {[%clk 0:02:50.8]} 13... Nc7
{[%clk 0:03:01.4]} 14. O-O-O {[%clk 0:02:50.3]} 14... O-O-O {[%clk 0:03:01.5]}
15. Be1 {[%clk 0:02:40.1]} 15... Bd4 {[%clk 0:03:00.2]} 16. f5 {[%clk
0:02:27.6]} 16... Nxd5 {[%clk 0:02:53.4]} 17. Ne2 {[%clk 0:01:36.8]} 17... Qa4
{[%clk 0:02:27.7]} 18. Kb1 {[%clk 0:01:14.6]} 18... Ne3 {[%clk 0:02:09]} 19. Rc1
{[%clk 0:01:09.4]} 19... Qc6 {[%clk 0:01:56]} 20. Bf2 {[%clk 0:00:46.6]} 20...
Qxf3 {[%clk 0:01:41.6]} 21. gxf3 {[%clk 0:00:47.5]} 21... Nxf5 {[%clk
0:01:41.8]} 22. gxf5 {[%clk 0:00:37.4]} 22... Bxf2 {[%clk 0:01:41.7]} 23. fxg6
{[%clk 0:00:34.5]} 23... hxg6 {[%clk 0:01:41.5]} 24. Nc3 {[%clk 0:00:27.5]}
24... Bd4 {[%clk 0:01:34.5]} 25. Ne4 {[%clk 0:00:23]} 25... f5 {[%clk
0:01:33.3]} 26. Ng5 {[%clk 0:00:22.9]} 26... Be3 {[%clk 0:01:26]} 27. Nf7 {[%clk
0:00:19.6]} 27... Rxh1 {[%clk 0:00:57.5]} 28. Rxh1 {[%clk 0:00:20.5]} 28... Rd2
{[%clk 0:00:47.2]} 29. a4 {[%clk 0:00:11.9]} 29... Bf4 {[%clk 0:00:43.3]} 30.
Re1 {[%clk 0:00:10]} 30... Kd7 {[%clk 0:00:41.8]} 31. Ne5+ {[%clk 0:00:06.9]}
31... Bxe5 {[%clk 0:00:41.6]} 32. Rxe5 {[%clk 0:00:07.8]} 32... Kd6 {[%clk
0:00:41.1]} 33. Re3 {[%clk 0:00:08.7]} 33... b6 {[%clk 0:00:36.9]} 34. a5 {[%clk
0:00:07.1]} 34... e5 {[%clk 0:00:32.1]} 35. axb6 {[%clk 0:00:06]} 35... axb6
{[%clk 0:00:33]} 36. Ra3 {[%clk 0:00:04.5]} 36... Rf2 {[%clk 0:00:30.4]} 37. Kc1
{[%clk 0:00:04.5]} 37... b5 {[%clk 0:00:26.6]} 38. Kd1 {[%clk 0:00:04]} 38... b4
{[%clk 0:00:26.8]} 39. Ra6+ {[%clk 0:00:03.8]} 39... Kd5 {[%clk 0:00:26.6]} 40.
Rxg6 {[%clk 0:00:03.3]} 40... Rxf3 {[%clk 0:00:26.8]} 41. Ke2 {[%clk 0:00:03.7]}
41... Rh3 {[%clk 0:00:26.6]} 42. Rg8 {[%clk 0:00:01.7]} 42... Rh2+ {[%clk
0:00:25.8]} 0-1

[Event "Early-Titled-Tuesday-Blitz-October-03-2023"]
[Site "Chess.com"]
[Date "2023.10.03"]
[Round "4"]
[White "zverr1"]
[Black "rikchessmx"]
[Result "1-0"]
[WhiteElo "2513"]
[BlackElo "2344"]
[TimeControl "180+1"]
[EndTime "8:39:41 PDT"]
[Termination "zverr1 won on time"]

1. e4 {[%clk 0:03:00.9]} 1... c5 {[%clk 0:03:00]} 2. Nf3 {[%clk 0:03:00.8]} 2...
e6 {[%clk 0:03:00.9]} 3. b3 {[%clk 0:03:01.1]} 3... d5 {[%clk 0:02:59.8]} 4.
exd5 {[%clk 0:03:00.1]} 4... exd5 {[%clk 0:02:56.3]} 5. Bb5+ {[%clk 0:03:00.7]}
5... Bd7 {[%clk 0:02:56.6]} 6. Qe2+ {[%clk 0:02:54.9]} 6... Qe7 {[%clk 0:02:53]}
7. O-O {[%clk 0:02:48.3]} 7... a6 {[%clk 0:02:49.7]} 8. Bxd7+ {[%clk 0:02:40.3]}
8... Kxd7 {[%clk 0:02:46.3]} 9. Qd3 {[%clk 0:02:15.9]} 9... Nf6 {[%clk
0:02:36.8]} 10. Re1 {[%clk 0:02:12]} 10... Qd6 {[%clk 0:02:18.5]} 11. Ne5+
{[%clk 0:02:10.2]} 11... Kc7 {[%clk 0:02:10]} 12. Nxf7 {[%clk 0:02:09]} 12...
Qd7 {[%clk 0:02:06.8]} 13. Nxh8 {[%clk 0:02:03.7]} 13... Nc6 {[%clk 0:02:04]}
14. Qh3 {[%clk 0:01:17.5]} 14... Qxh3 {[%clk 0:01:26.1]} 15. gxh3 {[%clk
0:01:18.4]} 15... Bd6 {[%clk 0:01:10]} 16. Nf7 {[%clk 0:01:17.1]} 16... Bf4
{[%clk 0:01:03]} 17. d3 {[%clk 0:01:04]} 17... Bxc1 {[%clk 0:01:02.2]} 18. Rxc1
{[%clk 0:01:04.9]} 18... h6 {[%clk 0:01:00.8]} 19. Re1 {[%clk 0:00:49.8]} 19...
Nd4 {[%clk 0:00:53]} 20. Re7+ {[%clk 0:00:47.8]} 20... Kc6 {[%clk 0:00:44.6]}
21. Nc3 {[%clk 0:00:41.7]} 21... Nxc2 {[%clk 0:00:33.6]} 22. Rc1 {[%clk
0:00:41.1]} 22... Nd4 {[%clk 0:00:22.7]} 23. Re3 {[%clk 0:00:19.4]} 23... Nf5
{[%clk 0:00:18.5]} 24. Ree1 {[%clk 0:00:18.1]} 24... Nd4 {[%clk 0:00:18.3]} 25.
Ne5+ {[%clk 0:00:18]} 25... Kd6 {[%clk 0:00:16.2]} 26. Kg2 {[%clk 0:00:09.7]}
26... Nh5 {[%clk 0:00:16]} 27. Ng6 {[%clk 0:00:08.7]} 27... Rd8 {[%clk
0:00:11.1]} 28. Re3 {[%clk 0:00:07.1]} 28... Nf5 {[%clk 0:00:09.6]} 29. Ree1
{[%clk 0:00:06.1]} 29... b5 {[%clk 0:00:02.2]} 30. Ne2 {[%clk 0:00:06.6]} 30...
b4 {[%clk 0:00:01.9]} 31. Ng3 {[%clk 0:00:07]} 1-0

[Event "Early-Titled-Tuesday-Blitz-October-03-2023"]
[Site "Chess.com"]
[Date "2023.10.03"]
[Round "4"]
[White "MrVenky"]
[Black "ValentunHulka"]
[Result "1/2-1/2"]
[WhiteElo "2560"]
[BlackElo "2779"]
[TimeControl "180+1"]
[EndTime "8:39:43 PDT"]
[Termination "Game drawn by repetition"]

1. Nf3 {[%clk 0:03:00.9]} 1... d5 {[%clk 0:02:54.5]} 2. g3 {[%clk 0:02:58.9]}
2... c5 {[%clk 0:02:54.8]} 3. Bg2 {[%clk 0:02:58.6]} 3... Nc6 {[%clk 0:02:55.3]}
4. d3 {[%clk 0:02:59]} 4... e5 {[%clk 0:02:55.4]} 5. Nbd2 {[%clk 0:02:58.6]}
5... Be7 {[%clk 0:02:54.2]} 6. e4 {[%clk 0:02:58.7]} 6... d4 {[%clk 0:02:54.7]}
7. Nc4 {[%clk 0:02:40.8]} 7... Qc7 {[%clk 0:02:49.9]} 8. a4 {[%clk 0:02:32.2]}
8... h5 {[%clk 0:02:45.8]} 9. h4 {[%clk 0:02:26]} 9... Bg4 {[%clk 0:02:44.7]}
10. Bd2 {[%clk 0:02:23.5]} 10... Nf6 {[%clk 0:02:43.2]} 11. Qc1 {[%clk
0:02:22.1]} 11... Nd7 {[%clk 0:02:40.9]} 12. O-O {[%clk 0:02:02.7]} 12... f6
{[%clk 0:02:29.8]} 13. b3 {[%clk 0:01:55.9]} 13... O-O-O {[%clk 0:02:28.6]} 14.
Nh2 {[%clk 0:01:46.7]} 14... Be6 {[%clk 0:02:27.7]} 15. f4 {[%clk 0:01:46.7]}
15... Rdg8 {[%clk 0:02:21.2]} 16. Nf3 {[%clk 0:01:41.6]} 16... Bg4 {[%clk
0:02:17.6]} 17. a5 {[%clk 0:01:34]} 17... Kb8 {[%clk 0:02:10.3]} 18. Kh2 {[%clk
0:01:22.6]} 18... exf4 {[%clk 0:01:55.1]} 19. Bxf4 {[%clk 0:01:21.5]} 19... Nde5
{[%clk 0:01:55.5]} 20. Nfxe5 {[%clk 0:01:10.2]} 20... Nxe5 {[%clk 0:01:46.7]}
21. c3 {[%clk 0:01:10.2]} 21... Rd8 {[%clk 0:01:42.5]} 22. Ra2 {[%clk
0:00:29.5]} 22... Be6 {[%clk 0:01:23.9]} 23. a6 {[%clk 0:00:24]} 23... b6 {[%clk
0:01:19.6]} 24. Rd2 {[%clk 0:00:19.8]} 24... Bxc4 {[%clk 0:01:02.2]} 25. dxc4
{[%clk 0:00:18.9]} 25... g5 {[%clk 0:01:02.9]} 26. hxg5 {[%clk 0:00:17.1]} 26...
fxg5 {[%clk 0:00:59.3]} 27. Bxe5 {[%clk 0:00:17.1]} 27... Qxe5 {[%clk
0:01:00.2]} 28. Rf5 {[%clk 0:00:16.8]} 28... Qc7 {[%clk 0:00:56.9]} 29. e5
{[%clk 0:00:17]} 29... h4 {[%clk 0:00:56.2]} 30. g4 {[%clk 0:00:16.4]} 30...
Rhf8 {[%clk 0:00:49.8]} 31. Rdf2 {[%clk 0:00:15.9]} 31... Rxf5 {[%clk
0:00:42.8]} 32. Rxf5 {[%clk 0:00:14.9]} 32... d3 {[%clk 0:00:35.3]} 33. Qe3
{[%clk 0:00:13.5]} 33... d2 {[%clk 0:00:23.9]} 34. Qf3 {[%clk 0:00:12.6]} 34...
Kc8 {[%clk 0:00:23.7]} 35. Qa8+ {[%clk 0:00:11]} 35... Qb8 {[%clk 0:00:24]} 36.
Qc6+ {[%clk 0:00:10.9]} 36... Qc7 {[%clk 0:00:24.4]} 37. Qa8+ {[%clk 0:00:11.2]}
37... Qb8 {[%clk 0:00:17.5]} 38. Qc6+ {[%clk 0:00:11.2]} 38... Qc7 {[%clk
0:00:17.7]} 39. Qa8+ {[%clk 0:00:11.7]} 1/2-1/2

[Event "Early-Titled-Tuesday-Blitz-October-03-2023"]
[Site "Chess.com"]
[Date "2023.10.03"]
[Round "4"]
[White "AnaKuchava"]
[Black "taleslascando"]
[Result "0-1"]
[WhiteElo "2236"]
[BlackElo "2024"]
[TimeControl "180+1"]
[EndTime "8:39:44 PDT"]
[Termination "taleslascando won by resignation"]

1. d4 {[%clk 0:03:00.9]} 1... Nf6 {[%clk 0:02:56.5]} 2. c4 {[%clk 0:03:00.1]}
2... g6 {[%clk 0:02:56.6]} 3. Nc3 {[%clk 0:02:59.7]} 3... Bg7 {[%clk 0:02:57.1]}
4. e4 {[%clk 0:02:59.9]} 4... d6 {[%clk 0:02:57.3]} 5. Nf3 {[%clk 0:02:58.4]}
5... O-O {[%clk 0:02:57.2]} 6. Be2 {[%clk 0:02:58.2]} 6... Nc6 {[%clk 0:02:57]}
7. O-O {[%clk 0:02:58.3]} 7... e5 {[%clk 0:02:56.6]} 8. Be3 {[%clk 0:02:55.5]}
8... exd4 {[%clk 0:02:46.5]} 9. Nxd4 {[%clk 0:02:54.8]} 9... Ne5 {[%clk
0:02:28.5]} 10. f3 {[%clk 0:02:39.8]} 10... c6 {[%clk 0:02:23]} 11. Qd2 {[%clk
0:02:38.6]} 11... Re8 {[%clk 0:02:17.7]} 12. Rad1 {[%clk 0:02:37.7]} 12... a6
{[%clk 0:02:16.5]} 13. Nc2 {[%clk 0:02:29]} 13... d5 {[%clk 0:02:13.8]} 14. cxd5
{[%clk 0:02:26]} 14... cxd5 {[%clk 0:02:13.7]} 15. exd5 {[%clk 0:02:25.7]} 15...
Bf5 {[%clk 0:01:59.2]} 16. Bg5 {[%clk 0:02:10.4]} 16... Rc8 {[%clk 0:01:34.7]}
17. Ne3 {[%clk 0:02:03.6]} 17... Bd7 {[%clk 0:01:08.6]} 18. Ne4 {[%clk
0:01:55.7]} 18... Nxe4 {[%clk 0:00:59.3]} 19. fxe4 {[%clk 0:01:30.6]} 19... Qxg5
{[%clk 0:00:56.3]} 20. Nc4 {[%clk 0:01:02.5]} 20... Qxd2 {[%clk 0:00:42.7]} 21.
Nxd2 {[%clk 0:01:03.4]} 21... Ng4 {[%clk 0:00:42.9]} 22. Bxg4 {[%clk 0:00:49.4]}
22... Bxg4 {[%clk 0:00:43.8]} 23. Rc1 {[%clk 0:00:49.3]} 23... Bxb2 {[%clk
0:00:18.5]} 24. Rb1 {[%clk 0:00:44.8]} 24... Bd4+ {[%clk 0:00:17.6]} 25. Kh1
{[%clk 0:00:44.8]} 25... b5 {[%clk 0:00:17]} 26. Nb3 {[%clk 0:00:43.9]} 26...
Rxe4 {[%clk 0:00:15.8]} 27. d6 {[%clk 0:00:43.6]} 27... Be6 {[%clk 0:00:13.8]}
28. Rbd1 {[%clk 0:00:41.1]} 28... Bb6 {[%clk 0:00:12.6]} 29. h3 {[%clk
0:00:36.4]} 29... Rd8 {[%clk 0:00:12.2]} 30. Nc1 {[%clk 0:00:32.8]} 30... Bc5
{[%clk 0:00:10.5]} 31. d7 {[%clk 0:00:18.4]} 31... Rxd7 {[%clk 0:00:10.1]} 32.
Rxd7 {[%clk 0:00:18.2]} 32... Bxd7 {[%clk 0:00:10.3]} 33. Rd1 {[%clk 0:00:18.9]}
33... Be6 {[%clk 0:00:09.7]} 34. Nd3 {[%clk 0:00:16.9]} 34... Rd4 {[%clk
0:00:08.6]} 35. Nf2 {[%clk 0:00:13]} 35... Rxd1+ {[%clk 0:00:08.3]} 36. Nxd1
{[%clk 0:00:13.9]} 36... Bd4 {[%clk 0:00:07.1]} 37. a3 {[%clk 0:00:12.2]} 37...
Bb3 {[%clk 0:00:07]} 0-1

[Event "Early-Titled-Tuesday-Blitz-October-03-2023"]
[Site "Chess.com"]
[Date "2023.10.03"]
[Round "4"]
[White "Sergey85Rodchenkov"]
[Black "novocane"]
[Result "1-0"]
[WhiteElo "2522"]
[BlackElo "2353"]
[TimeControl "180+1"]
[EndTime "8:39:46 PDT"]
[Termination "Sergey85Rodchenkov won on time"]

1. e4 {[%clk 0:02:57.3]} 1... c5 {[%clk 0:02:59.8]} 2. Nf3 {[%clk 0:02:57.4]}
2... Nc6 {[%clk 0:02:59.9]} 3. d4 {[%clk 0:02:58.1]} 3... cxd4 {[%clk
0:03:00.7]} 4. Nxd4 {[%clk 0:02:58.7]} 4... e5 {[%clk 0:03:00.6]} 5. Nb5 {[%clk
0:02:58]} 5... d6 {[%clk 0:03:00.3]} 6. c4 {[%clk 0:02:58.1]} 6... Be6 {[%clk
0:02:56.1]} 7. N1c3 {[%clk 0:02:54.8]} 7... a6 {[%clk 0:02:55.8]} 8. Na3 {[%clk
0:02:54.6]} 8... Rc8 {[%clk 0:02:55.1]} 9. Be3 {[%clk 0:02:49.5]} 9... Nf6
{[%clk 0:02:41.6]} 10. Be2 {[%clk 0:02:48.2]} 10... Be7 {[%clk 0:02:41.7]} 11.
O-O {[%clk 0:02:47.4]} 11... O-O {[%clk 0:02:42]} 12. f3 {[%clk 0:02:43.7]}
12... Ne8 {[%clk 0:02:38.7]} 13. Qd2 {[%clk 0:02:35.8]} 13... h6 {[%clk
0:02:36.7]} 14. g3 {[%clk 0:02:28.9]} 14... Bh3 {[%clk 0:02:11.6]} 15. Rfd1
{[%clk 0:02:27.4]} 15... f5 {[%clk 0:01:27.9]} 16. exf5 {[%clk 0:01:03.9]} 16...
Bxf5 {[%clk 0:01:26.1]} 17. Nd5 {[%clk 0:01:01.1]} 17... Bg5 {[%clk 0:01:10.7]}
18. f4 {[%clk 0:01:01.1]} 18... exf4 {[%clk 0:01:06.7]} 19. gxf4 {[%clk
0:01:02]} 19... Bf6 {[%clk 0:01:05.4]} 20. Bf3 {[%clk 0:00:59]} 20... Kh8 {[%clk
0:01:01.9]} 21. Rac1 {[%clk 0:00:54.4]} 21... Bh7 {[%clk 0:00:46.7]} 22. Kh1
{[%clk 0:00:50.6]} 22... Ne7 {[%clk 0:00:37.8]} 23. Nb6 {[%clk 0:00:39.5]} 23...
Rb8 {[%clk 0:00:30.8]} 24. c5 {[%clk 0:00:38.9]} 24... d5 {[%clk 0:00:28.3]} 25.
Nxd5 {[%clk 0:00:20.4]} 25... Nxd5 {[%clk 0:00:27.8]} 26. Bxd5 {[%clk
0:00:21.3]} 26... Qe7 {[%clk 0:00:24.9]} 27. Bg2 {[%clk 0:00:20.6]} 27... Nc7
{[%clk 0:00:19.3]} 28. Nc4 {[%clk 0:00:20.8]} 28... Rbe8 {[%clk 0:00:17.6]} 29.
Re1 {[%clk 0:00:20.2]} 29... Be4 {[%clk 0:00:16.8]} 30. Nd6 {[%clk 0:00:19.6]}
30... Bxg2+ {[%clk 0:00:16.5]} 31. Qxg2 {[%clk 0:00:20.5]} 31... Rd8 {[%clk
0:00:15.8]} 32. b4 {[%clk 0:00:19.9]} 32... Qd7 {[%clk 0:00:15.6]} 33. Rcd1
{[%clk 0:00:19.7]} 33... Qa4 {[%clk 0:00:14.7]} 34. Bd4 {[%clk 0:00:19.6]} 34...
Bxd4 {[%clk 0:00:14.7]} 35. Rxd4 {[%clk 0:00:20.5]} 35... Nb5 {[%clk 0:00:13]}
36. Nf7+ {[%clk 0:00:20.4]} 36... Rxf7 {[%clk 0:00:02.1]} 37. Rxd8+ {[%clk
0:00:20.8]} 37... Kh7 {[%clk 0:00:02.6]} 38. Qe4+ {[%clk 0:00:21.4]} 1-0